[Event "3rd Sunway Formentera-A 2024"]
[Site "Formentera"]
[Date "2024.04.15"]
[Round "6.9"]
[White "Stark, John"]
[Black "Botez, Alexandra"]
[Result "1/2-1/2"]
[ECO "E71"]
[WhiteElo "1954"]
[BlackElo "1970"]
[Annotator "NA RC"]
[PlyCount "121"]
[EventDate "2024.04.03"]
[EventType "swiss"]
[EventCountry "ESP"]
[SourceTitle "playchess.com"]
[Source "ChessBase"]
[SourceQuality "1"]
[TimeControl "40/5400+30:1800+30"]

1. d4 {[%emt 0:00:26]} Nf6 {[%emt 0:00:22]} 2. c4 {[%emt 0:00:58]} g6 {[%emt 0:00:10]} 3. Nc3 {[%emt 0:00:05]} Bg7 {[%emt 0:01:11]} 4. e4 {[%emt 0:01:01]} d6 {[%emt 0:00:09]} 5. h3 {[%emt 0:00:07]} O-O {[%emt 0:00:26]} 6. Bg5 {[%emt 0:00:04]} c5 {[%emt 0:00:28]} 7. d5 {[%emt 0:00:48]} a6 {[%emt 0:00:35]} 8. a4 {[%emt 0:04:28]} Qa5 {[%emt 0:05:55]} 9. Bd3 {[%emt 0:04:26]} e6 {[%emt 0:05:00]} 10. Nge2 {[%emt 0:07:25]} exd5 {[%emt 0:00:38]} 11. exd5 {[%emt 0:01:54]} Re8 {[%emt 0:05:13]} 12. O-O {[%emt 0:00:21]} Nbd7 {[%emt 0:02:29]} 13. f4 {[%emt 0:03:01]} h6 {[%emt 0:03:34]} 14. Bh4 {[%emt 0:00:33]} Nh7 {[%emt 0:00:12]} 15. Qc2 {[%emt 0:02:50]} Ndf8 {[%emt 0:01:51]} 16. f5 {[%emt 0:11:11]} g5 {[%emt 0:01:03]} 17. Bg3 {[%emt 0:02:05]} Be5 {[%emt 0:05:39]} 18. Ne4 {[%emt 0:02:12]} Qc7 {[%emt 0:02:48]} 19. Bxe5 {[%emt 0:08:07]} Rxe5 {[%emt 0:00:12]} 20. g4 {[%emt 0:00:44]} Rb8 {[%emt 0:04:21]} 21. N2g3 {[%emt 0:03:01]} f6 {[%emt 0:17:53]} 22. Nh5 {[%emt 0:01:47]} Qe7 {[%emt 0:00:39]} 23. Rae1 {[%emt 0:05:39]} Bd7 {[%emt 0:07:42]} 24. a5 {[%emt 0:39:17]} b5 {[%emt 0:03:22]} 25. axb6 {[%emt 0:00:00]} Rxb6 {[%emt 0:00:05]} 26. Qc3 {[%emt 0:00:00]} Be8 {[%emt 0:01:25]} 27. Nhg3 {[%emt 0:00:00]} Qb7 {[%emt 0:01:57]} 28. Nxd6 {[%emt 0:00:00]} Rxd6 {[%emt 0:01:09]} 29. Rxe5 {[%emt 0:00:00]} fxe5 {[%emt 0:00:18]} 30. Qxe5 {[%emt 0:00:00]} Rd8 {[%emt 0:05:46]} 31. Ne4 {[%emt 0:00:00]} Qb6 {[%emt 0:08:59]} 32. Qe7 {[%emt 0:00:00]} Bf7 {[%emt 0:01:07]} 33. Rf2 {[%emt 0:00:00]} Re8 {[%emt 0:02:01]} 34. Qxc5 {[%emt 0:00:05]} Qxc5 {[%emt 0:02:08]} 35. Nxc5 {[%emt 0:00:08]} a5 {[%emt 0:01:18]} 36. Ne6 {[%emt 0:00:35]} Nd7 {[%emt 0:00:57]} 37. Rc2 {[%emt 0:01:24]} Nhf6 {[%emt 0:00:34]} 38. Re2 {[%emt 0:03:02]} Rc8 {[%emt 0:03:03]} 39. Nd4 {[%emt 0:00:43]} Nc5 {[%emt 0:01:05]} 40. Nc6 {[%emt 0:00:00]} Re8 {[%emt 0:00:00]} 41. Rxe8+ {[%emt 0:02:13]} Bxe8 {[%emt 0:03:30]} 42. Bc2 {[%emt 0:00:24]} Bxc6 {[%emt 0:01:22]} 43. dxc6 {[%emt 0:00:04]} Na6 {[%emt 0:00:25]} 44. Kf2 {[%emt 0:00:47]} Kf7 {[%emt 0:00:08]} 45. Ke3 {[%emt 0:01:02]} Ke7 {[%emt 0:01:12]} 46. Kd4 {[%emt 0:00:53]} h5 {[%emt 0:06:24]} 47. gxh5 {[%emt 0:02:36]} Nxh5 {[%emt 0:00:09]} 48. Ke5 {[%emt 0:00:57]} Nf6 {[%emt 0:04:43]} 49. Bd1 {[%emt 0:05:12]} Nc7 {[%emt 0:11:14]} 50. Be2 {[%emt 0:06:51]} Nce8 {[%emt 0:03:05]} 51. c5 {[%emt 0:02:22]} Nc7 {[%emt 0:03:28]} 52. Kd4 {[%emt 0:09:34]} Nfd5 {[%emt 0:00:30]} 53. Ke5 {[%emt 0:00:30]} Nf6 {[%emt 0:00:30]} 54. Bf3 {[%emt 0:00:30]} Nb5 {[%emt 0:00:30]} 55. Bd1 {[%emt 0:00:30]} Nc7 56. Be2 {[%emt 0:00:30]} Ncd5 {[%emt 0:01:00]} 57. Ba6 {[%emt 0:00:30]} Nb4 {[%emt 0:02:18]} 58. Bb5 {[%emt 0:03:57]} Nbd5 {[%emt 0:00:06]} 59. Ba6 {[%emt 0:01:01]} Nb4 {[%emt 0:00:26]} 60. Bb5 {[%emt 0:00:53]} Nbd5 {[%emt 0:00:22]} 61. Ba6 {[%emt 0:00:46]} 1/2-1/2

[Event "3rd Sunway Formentera-A 2024"]
[Site "Formentera"]
[Date "2024.04.15"]
[Round "6.10"]
[White "Jacobson, Aaron"]
[Black "Kazarian, Anna-Maja"]
[Result "1-0"]
[ECO "C11"]
[WhiteElo "2431"]
[BlackElo "2207"]
[Annotator "TA"]
[PlyCount "53"]
[EventDate "2024.04.03"]
[EventType "swiss"]
[EventCountry "ESP"]
[SourceTitle "playchess.com"]
[Source "ChessBase"]
[SourceQuality "1"]
[TimeControl "40/5400+30:1800+30"]

{[%evp 13,53,-1,8,14,4,7,20,11,23,0,0,0,20,17,202,208,169,204,185,200,260,252,253,223,296,341,633,606,645,634,613,611,959,931,1285,1267,29989,29990,29990,29991,29998,29999]} 1. e4 {[%emt 0:00:27]} e6 {[%emt 0:00:04]} 2. d4 {[%emt 0:00:07]} d5 {[%emt 0:00:04]} 3. Nc3 {[%emt 0:00:12]} Nf6 {[%emt 0:00:12]} 4. e5 {[%emt 0:00:33]} Nfd7 {[%emt 0:00:05]} 5. Nce2 {[%emt 0:00:16]} c5 {[%emt 0:01:14]} 6. c3 {[%emt 0:01:39]} Nc6 {[%emt 0:05:01]} 7. Nf3 {[%emt 0:00:32]} b5 {[%emt 0:10:20][%cal Bb7b5,Bb5b4][%mdl 32]} 8. a3 {[%emt 0:14:08]} cxd4 {[%emt 0:07:25]} 9. cxd4 {[%emt 0:00:14]} b4 {[%emt 0:00:18]} 10. a4 {[%emt 0:01:05] The position is equal.} Ba6 {[%emt 0:00:40]} 11. g3 {[%emt 0:05:29]} Qb6 {[%emt 0:01:17]} 12. Nf4 {[%emt 0:03:33][%cal Oa4a5]} Bxf1 {[%emt 0:02:30]} 13. Kxf1 {[%emt 0:00:30]} g5 $2 {[%emt 0:01:02]} 14. Nxg5 $18 {[%emt 0:09:53] [#] Strongly threatening Qh5.} Qxd4 {[%emt 0:11:35]} 15. Qh5 {[%emt 0:00:51][%csl LRe6,LRf7,LRh7]} Ncxe5 {[%emt 0:13:58]} 16. Nfxe6 {[%emt 0:07:48]} (16. Nxh7 $2 Qe4 17. Ng2 Rxh7 $19) 16... Qc4+ {[%emt 0:07:12]} 17. Kg2 {[%emt 0:00:32][%cal Oc1f4] Hoping for Bf4!} Nf6 {[%emt 0:00:16]} 18. Qh3 {[%emt 0:06:13][%cal Oc1f4] [#] And now Bf4! would win.} Nfg4 {[%emt 0:07:21]} 19. Bf4 {[%emt 0:20:52][%cal Bc1f4,Bf4e5,Be5d4][%mdl 32]} fxe6 $2 {[%emt 0:22:48]} (19... d4) 20. Bxe5 {[%emt 0:02:30]} Rg8 {[%emt 0:04:44]} 21. Qh5+ {[%emt 0:00:57]} (21. Nxh7 $2 Qe4+ (21... Nxe5 $2 22. Qxe6+ Kd8 23. Nf6 $18) 22. Kg1 Qxe5 $19 (22... Nxe5 $2 23. Nf6+ Kf7 24. Nxe4 $18)) 21... Rg6 {[%emt 0:01:17]} 22. Rhe1 {[%emt 0:02:22] Inhibits Qe2.} (22. Nxe6 $2 Qe4+ 23. Kg1 Nxe5 $19 (23... Qxe5 24. Qxe5 Nxe5 25. Nc7+ Kd7 26. Nxa8 $15)) 22... Be7 {[%emt 0:01:29]} 23. Nxe6 {[%emt 0:02:38] aiming for Bd4.} Qc2 {[%emt 0:00:22]} 24. Bd4 {[%emt 0:00:21]} ({Not} 24. Qxh7 Qxf2+ (24... Nxf2 $2 {loses.} 25. Qh5 $18) 25. Kh1 Qf3+ 26. Kg1 Qf2+ (26... Rxe6 27. Bd4 $11) 27. Kh1 Qf3+ 28. Kg1 Qf2+ (28... Rxe6 29. Bd4 $11) 29. Kh1 $11) 24... Kd7 {[%emt 0:00:39]} 25. Qxd5+ {[%emt 0:00:14] White mates.} Bd6 {[%emt 0:00:19]} 26. Nc5+ {[%emt 0:00:15]} Kc7 {[%emt 0:00:33]} 27. Qb7+ {[%emt 0:00:13] Black got outplayed after the opening.   Weighted Error Value: White=0.01 (flawless) /Black=0.83.  Loses game:     	---       	Black=1      Mistake:       	---       	Black=1      Inaccurate:     	---       	Black=1      OK:         	White=4     	Black=5      Best:        	White=3     	---} 1-0

[Event "3rd Sunway Formentera-A 2024"]
[Site "Formentera"]
[Date "2024.04.15"]
[Round "6.11"]
[White "Botez, Andrea"]
[Black "Nardelli, Marco"]
[Result "1-0"]
[ECO "D00"]
[WhiteElo "1879"]
[BlackElo "2078"]
[Annotator "NA RC"]
[PlyCount "65"]
[EventDate "2024.04.03"]
[EventType "swiss"]
[EventCountry "ESP"]
[SourceTitle "playchess.com"]
[Source "ChessBase"]
[SourceQuality "1"]
[TimeControl "40/5400+30:1800+30"]

1. d4 {[%emt 0:00:22]} d5 {[%emt 0:00:16]} 2. Nc3 {[%emt 0:00:07]} Nf6 {[%emt 0:00:14]} 3. Bf4 {[%emt 0:00:11]} e6 {[%emt 0:00:51]} 4. e3 {[%emt 0:01:33]} Bb4 {[%emt 0:00:58]} 5. Bd3 {[%emt 0:00:21]} c5 {[%emt 0:01:45]} 6. dxc5 {[%emt 0:00:15]} Nbd7 {[%emt 0:00:12]} 7. Nf3 {[%emt 0:00:34]} O-O {[%emt 0:08:37]} 8. O-O {[%emt 0:00:38]} Bxc3 {[%emt 0:11:30]} 9. bxc3 {[%emt 0:01:02]} Nxc5 {[%emt 0:03:26]} 10. c4 {[%emt 0:16:51]} b6 {[%emt 0:22:49]} 11. cxd5 {[%emt 0:03:30]} Qxd5 {[%emt 0:02:56]} 12. Bd6 {[%emt 0:26:54]} Re8 {[%emt 0:04:23]} 13. Bb5 {[%emt 0:06:47]} Bd7 {[%emt 0:08:31]} 14. Be2 {[%emt 0:01:39]} Nce4 {[%emt 0:04:53]} 15. Be5 {[%emt 0:05:02]} Qb7 {[%emt 0:04:43]} 16. Nd4 {[%emt 0:05:18]} Rad8 {[%emt 0:01:50]} 17. c4 {[%emt 0:05:45]} Qc8 {[%emt 0:05:46]} 18. Rc1 {[%emt 0:01:09]} Qc5 {[%emt 0:00:16]} 19. Nf3 {[%emt 0:11:46]} Bc6 {[%emt 0:01:31]} 20. Bd4 {[%emt 0:01:04]} Qa5 {[%emt 0:03:28]} 21. Qc2 {[%emt 0:06:58]} e5 {[%emt 0:03:13]} 22. Ba1 {[%emt 0:00:04]} Ba4 {[%emt 0:02:04]} 23. Qb2 {[%emt 0:01:57]} Nd2 {[%emt 0:02:31]} 24. Rfe1 {[%emt 0:00:08]} Nxf3+ {[%emt 0:01:30]} 25. Bxf3 {[%emt 0:00:05]} e4 {[%emt 0:02:22]} 26. Be2 {[%emt 0:01:48]} Qc5 {[%emt 0:00:40]} 27. Qc3 {[%emt 0:00:49]} Rd7 {[%emt 0:00:47]} 28. Bb2 {[%emt 0:00:18]} Red8 {[%emt 0:01:05]} 29. Ba3 {[%emt 0:00:14]} Qf5 {[%emt 0:00:24]} 30. Qb4 {[%emt 0:00:33]} Bc6 {[%emt 0:00:16]} 31. h3 {[%emt 0:00:34]} h6 {[%emt 0:01:13]} 32. Rcd1 {[%emt 0:00:50]} Nh7 {[%emt 0:00:31]} 33. Bg4 {[%emt 0:00:32]} 1-0

[Event "3rd Sunway Formentera-A 2024"]
[Site "Formentera"]
[Date "2024.04.15"]
[Round "6.12"]
[White "Vantika Agrawal"]
[Black "Tsatsalashvili, Keti"]
[Result "1-0"]
[ECO "D35"]
[WhiteElo "2398"]
[BlackElo "2315"]
[Annotator "TA"]
[PlyCount "93"]
[EventDate "2024.04.03"]
[EventType "swiss"]
[EventCountry "ESP"]
[SourceTitle "playchess.com"]
[Source "ChessBase"]
[SourceQuality "1"]
[TimeControl "40/5400+30:1800+30"]

{[%evp 13,93,0,0,0,28,21,32,18,14,3,35,24,32,15,0,0,46,49,59,19,23,12,18,3,0,0,12,0,0,0,14,0,14,-10,0,0,0,5,27,22,36,40,31,16,38,37,58,24,58,64,143,138,135,139,305,272,521,463,515,519,505,391,556,580,601,606,806,839,935,928,1120,1100,1114,1084,1177,1177,896,715,977,929,5708,5530]} 1. d4 {[%emt 0:01:52]} Nf6 {[%emt 0:00:08]} 2. c4 {[%emt 0:00:18]} e6 {[%emt 0:00:08]} 3. Nf3 {[%emt 0:00:05]} d5 {[%emt 0:00:50]} 4. Nc3 {[%emt 0:00:25]} Be7 {[%emt 0:02:44]} 5. cxd5 {[%emt 0:01:01]} exd5 {[%emt 0:01:23]} 6. Bf4 {[%emt 0:00:41]} c6 {[%emt 0:00:24]} 7. e3 {[%emt 0:01:01]} Bf5 {[%emt 0:00:47]} 8. Nh4 {[%emt 0:03:46]} Be4 {[%emt 0:01:15]} 9. f3 {[%emt 0:10:49]} Bg6 {[%emt 0:02:07]} 10. Nxg6 {[%emt 0:01:40] White is slightly better.} hxg6 {[%emt 0:00:06]} 11. Qb3 {[%emt 0:04:52]} Qb6 {[%emt 0:03:34]} 12. g4 {[%emt 0:06:18]} Nfd7 {[%emt 0:02:43]} 13. O-O-O {[%emt 0:04:39]} Qxb3 {[%emt 0:09:09]} 14. axb3 {[%emt 0:00:26]} Nf6 {[%emt 0:06:43]} (14... Nf8 $11) 15. h4 $14 {[%emt 0:12:41]} Nbd7 {[%emt 0:01:42][%cal Bb8d7,Bd7f8,Bf8e6][%mdl 32]} 16. Bd3 {[%emt 0:08:21]} Nf8 {[%emt 0:03:52]} 17. Bg3 {[%emt 0:07:12]} Ne6 {[%emt 0:01:06]} 18. Bf2 {[%emt 0:12:15]} O-O-O {[%emt 0:02:07]} 19. Ne2 {[%emt 0:01:30]} Bd6 {[%emt 0:09:50]} 20. Kb1 {[%emt 0:02:00]} Rde8 {[%emt 0:02:07]} 21. Rdg1 {[%emt 0:02:15]} Kb8 {[%emt 0:16:12]} 22. Ng3 {[%emt 0:06:42]} c5 {[%emt 0:04:16]} 23. Bb5 {[%emt 0:05:39]} Rd8 {[%emt 0:01:29]} 24. dxc5 {[%emt 0:02:46]} Nxc5 {[%emt 0:01:50]} 25. Rd1 {[%emt 0:01:59]} a6 {[%emt 0:12:04]} 26. Be2 {[%emt 0:00:11]} Bc7 {[%emt 0:02:57]} 27. b4 {[%emt 0:00:47]} Ne6 {[%emt 0:00:26]} 28. g5 {[%emt 0:00:40]} Nh5 {[%emt 0:01:16]} 29. Nxh5 {[%emt 0:00:16]} gxh5 {[%emt 0:00:04]} 30. Rd2 {[%emt 0:00:40]} Bb6 {[%emt 0:03:15]} 31. Rhd1 {[%emt 0:00:26][%cal Bh1d1,Bd1d5,Bd5f5,Bf5f7][%mdl 32]} Rhe8 {[%emt 0:03:20]} (31... Nc7 $14) 32. Rxd5 $16 {[%emt 0:00:35]} Rxd5 {[%emt 0:00:16]} 33. Rxd5 {[%emt 0:00:04]} Ka8 $2 {[%emt 0:04:12] This costs Black the game.} (33... Kc8 $16 {was necessary.}) 34. Bc4 {[%emt 0:00:57] Hoping for Rd6.} Nf4 $2 {[%emt 0:01:51]} (34... Rd8 35. Rxd8+ Nxd8) 35. Rf5 $18 {[%emt 0:00:36]} Ng2 {[%emt 0:01:08]} 36. Rxf7 {[%emt 0:01:03][%cal Oc4d5] [#] And now Bd5! would win.} Bxe3 {[%emt 0:00:27]} 37. Bxe3 {[%emt 0:00:29]} Nxe3 {[%emt 0:00:16][%mdl 4096] Endgame. KRB-KRN} (37... Rxe3 {keeps fighting.} 38. Rxg7 Rxf3) 38. Bd3 {[%emt 0:00:19] White is clearly winning.} Nd5 {[%emt 0:00:39]} 39. Be4 {[%emt 0:00:14]} Nxb4 {[%emt 0:00:10]} 40. Bxb7+ {[%emt 0:00:00]} (40. Rxb7 $2 {is the wrong capture.} Rxe4 41. Rc7 Re1+ (41... Rxh4 $2 42. Kc1 $19) 42. Rc1 Nd3 43. Rxe1 Nxe1 $19) 40... Kb8 {[%emt 0:00:00]} 41. Be4 {[%emt 0:01:24]} (41. Rxg7 $2 Re1#) 41... a5 {[%emt 0:00:11]} 42. Rxg7 {[%emt 0:02:24]} Rd8 {[%emt 0:00:04]} 43. Kc1 {[%emt 0:00:12]} Na6 {[%emt 0:01:59]} 44. Rb7+ {[%emt 0:05:08]} Kc8 {[%emt 0:00:15]} 45. Ra7 {[%emt 0:02:00]} Nc5 {[%emt 0:00:27]} 46. Kc2 {[%emt 0:01:48]} (46. Rxa5 $2 {loses.} Nb3+ 47. Kc2 Nxa5 $19) 46... Rd4 {[%emt 0:00:42]} 47. g6 {[%emt 0:00:40] Weighted Error Value: White=0.12 (very precise) /Black=0.32.  Loses game:     	---       	Black=1      Mistake:       	---       	Black=4      Inaccurate:     	White=2     	Black=4      OK:         	White=11    	Black=7      Best:        	White=2     	---} 1-0

[Event "3rd Sunway Formentera-A 2024"]
[Site "Formentera"]
[Date "2024.04.15"]
[Round "6.13"]
[White "Voronaya, Eva"]
[Black "Vargas Drechsler, Carlos"]
[Result "1/2-1/2"]
[ECO "A85"]
[WhiteElo "1673"]
[BlackElo "1878"]
[Annotator "NA RC"]
[PlyCount "58"]
[EventDate "2024.04.03"]
[EventType "swiss"]
[EventCountry "ESP"]
[SourceTitle "playchess.com"]
[Source "ChessBase"]
[SourceQuality "1"]
[TimeControl "40/5400+30:1800+30"]

1. d4 {[%emt 0:00:03]} f5 {[%emt 0:00:17]} 2. Nf3 {[%emt 0:00:05]} Nf6 {[%emt 0:00:10]} 3. Bf4 {[%emt 0:00:04]} e6 {[%emt 0:01:55]} 4. c4 {[%emt 0:00:05]} Be7 {[%emt 0:01:57]} 5. Nc3 {[%emt 0:00:23]} O-O {[%emt 0:00:41]} 6. h3 {[%emt 0:03:05]} d6 {[%emt 0:04:13]} 7. e3 {[%emt 0:01:31]} b6 {[%emt 0:02:13]} 8. Be2 {[%emt 0:03:06]} Bb7 {[%emt 0:00:20]} 9. Ng5 {[%emt 0:07:44]} Qd7 {[%emt 0:02:40]} 10. Bf3 {[%emt 0:03:54]} c6 {[%emt 0:00:31]} 11. c5 {[%emt 0:17:58]} h6 {[%emt 0:07:28]} 12. cxd6 {[%emt 0:11:07]} Bxd6 {[%emt 0:03:20]} 13. Bxd6 {[%emt 0:02:09]} Qxd6 {[%emt 0:00:25]} 14. e4 {[%emt 0:06:27]} Qe7 {[%emt 0:06:37]} 15. e5 {[%emt 0:05:39]} Ne8 {[%emt 0:08:05]} 16. h4 {[%emt 0:08:08]} hxg5 {[%emt 0:01:27]} 17. hxg5 {[%emt 0:00:08]} Qxg5 {[%emt 0:04:14]} 18. Rh5 {[%emt 0:03:06]} Qe7 {[%emt 0:01:36]} 19. Qd2 {[%emt 0:06:39]} c5 {[%emt 0:06:27]} 20. d5 {[%emt 0:01:14]} exd5 {[%emt 0:08:24]} 21. Bxd5+ {[%emt 0:01:31]} Bxd5 {[%emt 0:00:26]} 22. Qxd5+ {[%emt 0:00:08]} Qf7 {[%emt 0:00:18]} 23. Qxa8 {[%emt 0:00:53]} Qxh5 {[%emt 0:00:33]} 24. Rd1 {[%emt 0:05:58]} Nc7 {[%emt 0:03:25]} 25. Qxa7 {[%emt 0:00:53]} Ne6 {[%emt 0:03:30]} 26. Qxb6 {[%emt 0:01:09]} Qh1+ {[%emt 0:00:25]} 27. Kd2 {[%emt 0:01:35]} Qh6+ {[%emt 0:00:18]} 28. Ke1 {[%emt 0:00:16]} Qh1+ {[%emt 0:03:43]} 29. Kd2 {[%emt 0:00:07]} Qh6+ {[%emt 0:00:36]} 1/2-1/2

[Event "3rd Sunway Formentera-A 2024"]
[Site "Formentera"]
[Date "2024.04.16"]
[Round "7.1"]
[White "Ivanchuk, Vasyl"]
[Black "Baklan, Vladimir"]
[Result "1/2-1/2"]
[ECO "B89"]
[WhiteElo "2611"]
[BlackElo "2531"]
[Annotator "TA"]
[PlyCount "59"]
[EventDate "2024.04.03"]
[EventType "swiss"]
[EventCountry "ESP"]
[SourceTitle "playchess.com"]
[Source "ChessBase"]
[SourceQuality "1"]
[TimeControl "40/5400+30:1800+30"]

{[%evp 18,59,16,20,42,41,59,54,104,104,102,106,106,111,118,73,154,129,121,121,111,54,54,57,66,58,54,74,87,83,259,258,333,0,0,0,0,0,0,0,0,0,0,0]} 1. e4 {[%emt 0:00:03]} c5 {[%emt 0:00:05]} 2. Nf3 {[%emt 0:00:04]} Nc6 {[%emt 0:00:05]} 3. d4 {[%emt 0:00:03]} cxd4 {[%emt 0:00:14]} 4. Nxd4 {[%emt 0:00:05]} Nf6 {[%emt 0:01:05]} 5. Nc3 {[%emt 0:00:05]} d6 {[%emt 0:00:05]} 6. Bc4 {[%emt 0:00:04]} e6 {[%emt 0:03:45]} 7. Be3 {[%emt 0:00:21]} Be7 {[%emt 0:00:13]} 8. Qe2 {[%emt 0:00:43]} Bd7 {[%emt 0:02:00]} 9. O-O-O {[%emt 0:00:53]} O-O {[%emt 0:05:10]} 10. f4 {[%emt 0:16:57]} a6 {[%emt 0:19:03] [#]} 11. e5 $1 {[%emt 0:10:27]} Ne8 {[%emt 0:09:20]} (11... dxe5 12. Nxc6) 12. Rhf1 {[%emt 0:11:17]} g6 {[%emt 0:08:41]} (12... Qc7 $14) 13. Bb3 $16 {[%emt 0:20:53] White has more active pieces. The black rooks are passive.} Na5 {[%emt 0:03:31]} 14. Kb1 {[%emt 0:13:33]} Nxb3 {[%emt 0:04:27]} 15. axb3 {[%emt 0:01:12]} (15. cxb3 $6 Qa5 $14) 15... Qc7 {[%emt 0:04:25] [#]} 16. h4 $1 {[%emt 0:09:33][%mdl 512]} Ng7 {[%emt 0:18:16]} (16... dxe5 $142 17. fxe5 Qxe5) (16... Bb5 17. Ndxb5) 17. g4 {[%emt 0:03:45]} dxe5 {[%emt 0:02:44]} 18. fxe5 {[%emt 0:00:12]} Qxe5 {[%emt 0:00:03][%cal Of7f5] [#]} 19. h5 {[%emt 0:00:24]} Bb5 {[%emt 0:00:36]} 20. Ndxb5 {[%emt 0:01:44]} axb5 {[%emt 0:00:06]} 21. h6 {[%emt 0:03:37]} (21. Nxb5 Bg5 22. Rfe1 (22. Rf3 f5 $17) 22... Bxe3 $17) 21... Ne8 {[%emt 0:01:21][%cal Bg7e8,Be8c7,Bc7b5,Bb5a3][%mdl 32]} 22. Qf3 $1 {[%emt 0:00:29]} (22. Qxb5 $2 Qxe3 23. Rd7 Bf6 (23... Nd6 $2 24. Qb4 $19) 24. Qxb7 Rd8 25. Rxd8 Bxd8 $19) (22. Nxb5 Nf6 23. Qd3 Nxg4 $17) 22... Qc7 {[%emt 0:05:07] Wards off Rd7. White must now prevent ...Qa5.} 23. Nxb5 {[%emt 0:01:00]} Qa5 {[%emt 0:00:09]} (23... Qc8 $16) 24. c4 $18 {[%emt 0:00:12]} (24. Qxb7 $2 Qa1#) 24... Nc7 {[%emt 0:00:16]} 25. Rd7 $2 {[%emt 0:03:47]} (25. Qxb7 $6 Nxb5 26. Qxb5 (26. Qxe7 Nc3+ 27. Kc2 Nxd1 $16) 26... f5 $18) (25. Bc5 $18 Bxc5 26. Nxc7 Qxc7 27. Qf6 Ra1+ 28. Kxa1 Ra8+ 29. Kb1) 25... Nxb5 $11 {[%emt 0:00:49] The position is equal.} 26. Rxe7 {[%emt 0:00:01][%cal Of3f6]} Qa2+ {[%emt 0:02:22]} 27. Kc2 {[%emt 0:00:01][%cal Of3f6] Threatening mate with Qf6! Really sharp!} Na3+ {[%emt 0:00:17]} 28. Kc3 {[%emt 0:00:01][%cal Of3f6] White wants to mate with Qf6!} Nb5+ {[%emt 0:00:06]} 29. Kc2 $1 {[%emt 0:02:54][%cal Of3f6] Intending Qf6! and mate.} (29. cxb5 $2 {too greedy.} Rfc8+ $19) 29... Na3+ {[%emt 0:10:39]} 30. Kc3 {Weighted Error Value: White=0.19 (very precise) /Black=0.26 (precise) .  Loses game:     	---       	Black=1      Missed win:     	White=1     	---        Mistake:       	White=1     	Black=2      Inaccurate:     	White=1     	---        OK:         	White=7     	Black=6      Best:        	White=5     	Black=3      Strong:       	White=2     	---} 1/2-1/2